bitfinex-derivatives/quotes_SOLF0:USTF0_20250207
["timestamp","ask_amount","ask_price","bid_price","bid_amount"]
[1738906930059,5.1716,193.32,193.29,0.03628987]
[1738906931158,5.20400363,193.33,193.29,0.03628987]
[1738906932260,5.1723,193.29,193.22,5.1741]
[1738906932659,14.44255521,193.33,193.19,14.44255521]
[1738906932863,14.44255521,193.33,193.22,14.44255521]
[1738906933362,0.03489019,193.29,193.26,0.03721445]
[1738906933660,3.64,193.36,193.26,0.03721445]
[1738906933661,5.1714,193.33,193.26,0.03721445]
[1738906933856,0.03565071,193.29,193.26,0.03721445]
[1738906934058,5.1712,193.33,193.26,5.21021445]
[1738906934252,0.03302017,193.29,193.26,0.03721445]
[1738906934458,3.64,193.36,193.26,0.03721445]
[1738906934671,0.03664516,193.29,193.26,0.03721445]
[1738906934857,5.1705,193.36,193.26,0.03721445]
[1738906935253,0.03925944,193.33,193.26,0.03721445]
[1738906936166,0.03925944,193.33,193.31,5.1717]
[1738906937153,0.03925944,193.33,193.32,5.1714]
[1738906939461,0.03925944,193.33,193.31,14.44255521]
[1738906939664,0.03925944,193.33,193.3,0.03784071]
[1738906940762,0.03925944,193.33,193.31,5.1717]
[1738906942369,0.03925944,193.33,193.3,0.03784071]
[1738906942668,0.03925944,193.33,193.32,5.1714]
[1738906952575,0.03925944,193.33,193.3,0.03784071]
[1738906952781,0.03925944,193.33,193.3,5.20964071]
[1738906953577,0.03925944,193.33,193.32,5.1714]
[1738906954781,0.03925944,193.33,193.31,14.44255521]
[1738906954985,0.03925944,193.33,193.3,5.20954071]
[1738906955379,0.03925944,193.33,193.3,0.03784071]
[1738906955683,0.03925944,193.33,193.31,5.1717]
[1738906955881,0.03925944,193.33,193.3,0.03784071]
[1738906956378,0.03925944,193.33,193.31,14.44255521]
[1738906956582,0.03925944,193.33,193.32,14.4142434]
[1738906956783,0.03925944,193.33,193.32,9.2428434]
[1738906958384,0.03925944,193.33,193.32,14.4142434]
[1738906959585,0.03925944,193.33,193.32,9.2428434]
[1738906959885,0.03925944,193.33,193.3,9.28068411]
[1738906961887,0.03925944,193.33,193.3,14.45258411]
[1738906963482,0.03925944,193.33,193.3,0.03784071]
[1738906963888,1.57295944,193.33,193.3,0.03784071]
[1738906964182,5.1714,193.32,193.3,0.03784071]
[1738906964386,1.57295944,193.33,193.3,0.03784071]
[1738906964790,9.2428434,193.32,193.26,9.2428434]
[1738906965585,5.1721,193.3,193.24,14.4162434]
[1738906965792,9.2428434,193.32,193.24,9.2428434]
[1738906965998,0.03556915,193.29,193.24,9.2428434]
[1738906967096,5.1727,193.28,193.24,9.2428434]
[1738906967496,0.03556915,193.29,193.26,9.2428434]
[1738906967798,1.6632,193.32,193.26,9.2428434]
[1738906968096,0.03291721,193.29,193.27,5.1728]
[1738906969492,0.03291721,193.29,193.26,9.2428434]
[1738906969694,0.03291721,193.29,193.24,9.2428434]
[1738906970594,0.03291721,193.29,193.23,14.45267333]
[1738906971299,0.03291721,193.29,193.26,5.1728]
[1738906974601,0.03291721,193.29,193.23,14.45267333]
[1738906974802,5.20521721,193.29,193.24,5.1733]
[1738906975296,0.03291721,193.29,193.23,14.45267333]
[1738906976096,0.03291721,193.29,193.25,5.1731]
[1738906978099,12.37700475,193.4,193.28,14.45267333]
[1738906978299,9.85990475,193.4,193.37,14.45267333]
[1738906978707,9.85990475,193.4,193.38,5.1698]
[1738906978906,9.85990475,193.4,193.37,14.45267333]
[1738906979106,21.25098316,193.41,193.37,14.45267333]
[1738906979405,0.03678817,193.4,193.37,19.65891791]
[1738906980609,0.03678817,193.4,193.37,14.48881791]
[1738906980803,5.1698,193.38,193.37,0.03614458]
[1738906981005,0.03678817,193.4,193.28,14.45267333]
[1738906981204,15.99957333,193.41,193.3,5.1718]
[1738906982013,5.1704,193.36,193.3,5.1718]
[1738906982713,0.03910604,193.37,193.3,5.1718]
[1738906983114,0.03910604,193.37,193.31,14.45267333]
[1738906983310,6.7161,193.41,193.31,14.45267333]
[1738906983509,0.03277859,193.36,193.31,14.45267333]
[1738906984016,0.03277859,193.36,193.33,5.171]
[1738906986520,0.03277859,193.36,193.34,14.45267333]
[1738906986814,1.6128,193.4,193.34,14.45267333]
[1738906987120,0.03643815,193.37,193.34,14.45267333]
[1738906987513,0.03643815,193.37,193.35,5.1706]
[1738906991221,0.03643815,193.37,193.36,5.1704]
[1738906993722,3.2378,193.45,193.39,5.1693]
[1738906994119,8.4058,193.45,193.39,5.1693]
[1738906994320,8.4058,193.45,193.4,5.1692]
[1738906994822,0.03700587,193.44,193.41,0.03474577]
[1738906995427,0.03700587,193.44,193.41,5.20364577]
[1738906995618,0.03700587,193.44,193.41,19.6563191]
[1738906996318,0.03700587,193.44,193.42,5.1688]
[1738906996716,0.03700587,193.44,193.41,0.03474577]
[1738906997724,5.20540587,193.44,193.41,0.03474577]
[1738906999126,0.03700587,193.44,193.41,0.03474577]
[1738907000228,5.20530587,193.44,193.41,0.03474577]
[1738907000729,5.1696,193.39,193.28,14.45267333]
[1738907000927,17.69937333,193.43,193.28,14.45267333]
[1738907001132,33.23937333,193.43,193.28,14.45267333]
[1738907001526,17.69937333,193.43,193.28,14.45267333]
[1738907001729,5.1694,193.4,193.28,19.62507333]
[1738907002028,0.03321896,193.37,193.28,14.45267333]
[1738907002931,5.1705,193.36,193.28,14.45267333]
[1738907009027,5.1707,193.35,193.28,14.45267333]
[1738907009930,14.48589229,193.37,193.25,14.45267333]
[1738907010232,16.05037333,193.34,193.22,14.45267333]
[1738907010429,0.03602087,193.33,193.22,14.45267333]
[1738907010826,5.1724,193.29,193.22,14.45267333]
[1738907011337,0.03747719,193.27,193.22,14.45267333]
[1738907012841,0.03747719,193.27,193.19,14.45267333]
[1738907013730,5.1734,193.25,193.19,14.45267333]
[1738907014037,0.03747719,193.27,193.19,14.45267333]
[1738907015736,0.03747719,193.27,193.22,5.174]
[1738907017040,0.03747719,193.27,193.19,14.45267333]
[1738907017240,5.21027719,193.27,193.21,5.1744]
[1738907020140,5.21027719,193.27,193.22,5.1741]
[1738907022640,5.21027719,193.27,193.23,9.25226796]
[1738907023336,0.03747719,193.27,193.23,9.25226796]
[1738907023540,0.03747719,193.27,193.25,9.25226796]
[1738907024138,0.03747719,193.27,193.26,5.173]
[1738907029648,0.03747719,193.27,193.24,19.62452061]
[1738907030943,0.03747719,193.27,193.25,5.1732]
[1738907038546,0.03747719,193.27,193.24,14.45112061]
[1738907038748,0.03747719,193.27,193.24,19.62462061]
[1738907039653,0.03747719,193.27,193.24,14.45112061]
[1738907043847,0.03747719,193.27,193.24,19.62462061]
[1738907044053,0.03747719,193.27,193.16,1.5859]
[1738907044054,0.03747719,193.27,193.21,14.45112061]
[1738907044256,0.03747719,193.27,193.21,5.1744]
[1738907044456,0.03747719,193.27,193.18,14.45112061]
[1738907045762,5.1734,193.25,193.2,5.1746]
[1738907046062,0.03747719,193.27,193.21,14.45112061]
[1738907046246,1.6366,193.3,193.21,14.45112061]
[1738907046450,0.03633862,193.26,193.21,14.45112061]
[1738907046851,0.03633862,193.26,193.23,5.1738]
[1738907047955,0.03633862,193.26,193.21,14.45112061]
[1738907048157,0.03633862,193.26,193.25,5.1733]
[1738907048761,0.03633862,193.26,193.25,14.42215263]
[1738907048957,10.87585263,193.36,193.27,5.1725]
[1738907049164,9.24885263,193.36,193.29,9.24885263]
[1738907049464,5.1714,193.33,193.29,9.24885263]
[1738907050065,5.20997249,193.33,193.29,9.28572555]
[1738907051169,5.1714,193.32,193.29,9.28572555]
[1738907052565,0.03857249,193.33,193.31,9.24885263]
[1738907053173,0.03857249,193.33,193.31,14.42045263]
[1738907054065,0.03857249,193.33,193.31,9.24885263]
[1738907054271,0.03857249,193.33,193.32,5.1714]
[1738907058970,3.1679,193.43,193.35,5.1706]
[1738907059172,3.1679,193.43,193.37,9.24885263]
[1738907060178,0.03538605,193.42,193.38,0.03395798]
[1738907060877,5.1693,193.41,193.38,0.03395798]
[1738907064281,5.20418605,193.42,193.38,0.03395798]
[1738907064981,5.1691,193.41,193.38,0.03395798]
[1738907065477,9.28423868,193.42,193.38,0.03395798]
[1738907065686,5.1696,193.39,193.38,0.03395798]
[1738907074393,0.03538605,193.42,193.38,0.03395798]
[1738907074594,5.1693,193.4,193.38,0.03395798]
[1738907075192,5.20438605,193.42,193.38,0.03395798]
[1738907075400,0.03538605,193.42,193.39,9.24885263]
[1738907079396,5.1696,193.39,193.38,0.03395798]
[1738907092606,9.28423868,193.42,193.38,0.03395798]
[1738907092911,5.1691,193.41,193.38,0.03395798]
[1738907094712,0.03538605,193.42,193.38,0.03395798]
[1738907094911,5.20418605,193.42,193.38,0.03395798]
[1738907095515,0.03538605,193.42,193.38,0.03395798]
[1738907095704,0.03538605,193.42,193.38,5.20375798]
[1738907096313,0.03538605,193.42,193.38,0.03395798]
[1738907102623,5.20428605,193.42,193.38,0.03395798]
[1738907104622,5.20428605,193.42,193.39,9.24885263]
[1738907105420,0.03538605,193.42,193.41,14.41785263]
[1738907106721,5.1669,193.49,193.45,5.1679]
[1738907106920,5.1669,193.49,193.46,9.24885263]
[1738907107321,21.25098316,193.5,193.46,9.24885263]
[1738907107621,21.25098316,193.5,193.48,9.24885263]
[1738907107821,21.28591398,193.5,193.48,9.24885263]
[1738907109127,0.03493082,193.5,193.48,9.24885263]
[1738907112730,5.20163082,193.5,193.48,9.24885263]
[1738907116429,0.03493082,193.5,193.48,9.24885263]
[1738907118232,5.20163082,193.5,193.46,9.28776801]
[1738907121233,0.03493082,193.5,193.46,9.28776801]
[1738907121532,5.1669,193.49,193.46,9.28776801]
[1738907122033,5.1674,193.47,193.46,0.03891538]
[1738907122230,9.24885263,193.48,193.4,9.24885263]
[1738907122433,9.24885263,193.45,193.38,9.24885263]
[1738907122930,5.1691,193.41,193.38,9.24885263]
[1738907123138,9.24885263,193.45,193.38,9.24885263]
[1738907123527,5.169,193.41,193.4,0.03516844]
[1738907123937,5.1688,193.42,193.4,0.03516844]
[1738907125638,0.03686691,193.43,193.4,0.03516844]
[1738907125927,5.169,193.41,193.4,0.03516844]
[1738907127335,0.03686691,193.43,193.4,9.28402107]
[1738907127634,0.03686691,193.43,193.42,9.24885263]
[1738907129230,0.03686691,193.43,193.4,9.28402107]
[1738907129231,5.1688,193.42,193.4,9.28402107]
[1738907130335,0.03686691,193.43,193.4,0.03516844]
[1738907130537,5.169,193.41,193.4,0.03516844]
[1738907134138,5.169,193.41,193.32,3.2042]
[1738907134139,24.78885263,193.41,193.21,86.01732943]
[1738907134338,9.24885263,193.3,193.22,9.24885263]
[1738907134540,9.24885263,193.26,193.24,20.77814313]
[1738907134741,9.24885263,193.26,193.24,3.17604313]
[1738907135042,5.1733,193.25,193.24,3.17604313]
[1738907135543,3.66,193.3,193.24,3.17604313]
[1738907135544,14.4610155,193.26,193.24,3.17604313]
[1738907135941,0.03906287,193.26,193.24,3.17604313]
[1738907136140,0.03906287,193.26,193.23,0.03575372]
[1738907139642,29.99983223,193.25,193.11,14.45983223]
[1738907139947,14.45983223,193.19,193.05,14.45983223]
[1738907140540,5.1763,193.14,193.06,5.1783]
[1738907140934,0.03456051,193.12,193.06,5.1783]
[1738907141545,0.03456051,193.12,193.03,3.2398]
[1738907141949,14.45983223,193.1,192.99,283.15752085]
[1738907142245,5.1778,193.09,192.98,6.8343]
[1738907142547,0.03319629,193.06,192.98,1.6539]
[1738907144544,0.03319629,193.06,193.01,5.1797]
[1738907144847,0.03319629,193.06,192.98,1.6539]
[1738907145146,0.03319629,193.06,192.96,17.63983223]
[1738907145147,0.03319629,193.06,192.96,3.18]
[1738907145348,14.45983223,193.04,192.96,3.18]
[1738907145740,0.03421426,193.02,192.96,8.361]
[1738907147044,0.03421426,193.02,192.94,158.66722478]
[1738907147251,0.03421426,193.02,192.91,1.5895]
[1738907148247,0.03421426,193.02,192.95,5.1813]
[1738907148248,5.21371426,193.02,192.95,5.1813]
[1738907149544,0.03421426,193.02,192.93,14.45983223]
[1738907150250,0.03421426,193.02,192.96,5.1811]
[1738907150449,0.03421426,193.02,192.93,14.45983223]
[1738907150650,0.03421426,193.02,192.97,5.1808]
[1738907150850,0.03421426,193.02,192.93,14.45983223]
[1738907151444,0.03421426,193.02,192.95,5.1812]
[1738907151651,0.03421426,193.02,192.93,14.45983223]
[1738907152042,0.03421426,193.02,192.98,5.1804]
[1738907153353,0.03421426,193.02,192.99,5.1802]
[1738907153853,0.03421426,193.02,192.93,14.45983223]
[1738907154055,0.03421426,193.02,192.97,5.1806]
[1738907156249,0.03421426,193.02,192.91,64.63670995]
[1738907156444,0.03421426,193.02,192.98,5.1803]
[1738907156844,0.03421426,193.02,192.93,14.45983223]
[1738907157050,0.03421426,193.02,192.99,5.1801]
[1738907157248,0.03421426,193.02,192.93,14.45983223]
[1738907157651,0.03421426,193.02,192.99,5.1801]
[1738907158551,0.03421426,193.02,192.96,14.45983223]
[1738907158758,14.45983223,193.1,192.99,14.45983223]
[1738907159551,19.63713223,193.1,193.04,5.1787]
[1738907159753,14.45983223,193.1,192.99,14.45983223]
[1738907159956,0.03825696,193.09,193.05,0.03382054]
[1738907161759,5.1784,193.06,193.05,0.03382054]
[1738907162058,0.03825696,193.09,193.05,0.03382054]
[1738907163253,0.03825696,193.09,192.86,14.45983223]
[1738907163254,29.99983223,193.06,192.86,14.45983223]
[1738907163561,14.45983223,192.88,192.74,14.45983223]
[1738907163748,5.185,192.82,192.73,3.262]
[1738907163953,14.45983223,192.85,192.73,3.262]
[1738907164351,0.03666489,192.81,192.73,3.262]
[1738907165364,0.03666489,192.81,192.74,5.1869]
[1738907165554,0.03666489,192.81,192.73,3.262]
[1738907165964,19.64553223,192.79,192.68,6.8372]
[1738907166165,14.45983223,192.79,192.68,8.4268]
[1738907166371,0.03461228,192.75,192.68,17.69813223]
[1738907166560,14.45983223,192.82,192.68,17.69813223]
[1738907166761,0.03393402,192.73,192.7,5.188]
[1738907167067,0.03853381,192.73,192.68,3.2383]
[1738907168465,0.03853381,192.73,192.72,5.1874]
[1738907171568,5.1845,192.84,192.69,23.2546164]
[1738907171867,24.7730164,192.87,192.72,23.2546164]
[1738907172264,5.1842,192.85,192.72,23.2546164]
[1738907172468,24.7730164,192.87,192.69,23.2546164]
[1738907172869,0.0355737,192.8,192.76,0.03951143]
[1738907174772,0.0355737,192.8,192.78,5.1858]
[1738907175375,5.1875,192.73,192.56,23.2546164]
[1738907175567,23.2546164,192.73,192.56,23.2546164]
[1738907175967,5.1886,192.68,192.59,5.1909]
[1738907176168,23.2546164,192.73,192.56,23.2546164]
[1738907176465,0.03663808,192.66,192.56,23.2546164]
[1738907176980,0.03663808,192.66,192.57,1.5447]
[1738907177168,0.03663808,192.66,192.6,5.1906]
[1738907177371,0.03663808,192.66,192.57,1.5447]
[1738907177573,23.29125448,192.66,192.52,3.223]
[1738907177774,23.2546164,192.66,192.57,5.1915]
[1738907177971,0.03949176,192.61,192.57,5.1915]
[1738907179173,0.03949176,192.61,192.53,1.5583]
[1738907179174,0.03949176,192.61,192.55,5.1919]
[1738907180371,0.03949176,192.61,192.53,1.5583]
[1738907181267,5.1913,192.58,192.52,1.5502]
[1738907181473,23.2546164,192.6,192.47,1.6766]
[1738907181773,0.03819473,192.57,192.47,1.6766]
[1738907182879,5.22979473,192.57,192.49,5.1936]
[1738907184275,23.2546164,192.54,192.45,1.5162]
[1738907184467,23.2546164,192.54,192.38,1.6671]
[1738907184671,23.28817906,192.51,192.38,3.3254]
[1738907185075,0.03356266,192.51,192.38,3.3254]
[1738907186179,0.03356266,192.51,192.46,5.1945]
[1738907186381,0.03356266,192.51,192.38,3.3254]
[1738907187574,5.22676266,192.51,192.44,5.195]
[1738907188772,0.03356266,192.51,192.38,3.3254]
[1738907189174,0.03356266,192.51,192.46,5.1944]
[1738907190582,0.03356266,192.51,192.41,23.2546164]
[1738907190882,0.03356266,192.51,192.47,5.1943]
[1738907191677,0.03356266,192.51,192.48,5.1937]
[1738907191979,0.03356266,192.51,192.41,23.2546164]
[1738907192779,0.03356266,192.51,192.49,5.1937]
[1738907193084,0.03356266,192.51,192.45,23.2546164]
[1738907193384,0.03356266,192.51,192.5,5.1935]
[1738907193574,0.03356266,192.51,192.46,1.68]
[1738907193575,1.5927,192.64,192.48,23.2546164]
[1738907193776,6.7824,192.64,192.57,5.1914]
[1738907194481,5.1897,192.64,192.58,5.1913]
[1738907194680,0.0346136,192.62,192.59,0.0347374]
[1738907196780,0.0346136,192.62,192.59,5.2257374]
[1738907198686,0.0346136,192.62,192.6,5.1907]
[1738907199784,0.0346136,192.62,192.61,5.1905]
[1738907212698,0.0346136,192.62,192.6,5.1907]
[1738907220312,0.0346136,192.62,192.61,5.1905]
[1738907220806,0.0346136,192.62,192.59,0.0347374]
[1738907221806,5.1908,192.6,192.59,0.0347374]
[1738907222407,14.58819233,192.62,192.49,14.55357873]
[1738907222704,5.1917,192.57,192.49,14.55357873]
[1738907223309,14.55357873,192.59,192.46,17.70617873]
[1738907223515,14.55357873,192.59,192.49,5.1935]
[1738907223516,5.1919,192.56,192.49,5.1935]
[1738907223704,0.03863015,192.54,192.46,17.70617873]
[1738907223905,0.03863015,192.54,192.46,3.1526]
[1738907224916,0.03863015,192.54,192.47,5.194]
[1738907224917,5.23123015,192.54,192.47,5.194]
[1738907228011,0.03863015,192.54,192.49,14.55357873]
[1738907228410,0.03863015,192.54,192.52,14.55357873]
[1738907228616,0.03863015,192.54,192.53,5.1927]
[1738907229211,0.03863015,192.54,192.52,14.55357873]
[1738907229906,0.03863015,192.54,192.46,17.70617873]
[1738907230914,5.1928,192.53,192.47,5.194]
[1738907231814,5.23113015,192.54,192.47,5.194]
[1738907232416,0.03863015,192.54,192.49,5.1937]
[1738907233318,0.03863015,192.54,192.5,5.1934]
[1738907233514,0.03863015,192.54,192.46,17.70617873]
[1738907234019,0.03863015,192.54,192.49,5.1937]
[1738907234616,0.03863015,192.54,192.47,5.1941]
[1738907234808,0.03863015,192.54,192.43,16.07327873]
[1738907235915,5.1933,192.51,192.45,5.1948]
[1738907236418,0.03282348,192.5,192.45,5.1948]
[1738907237322,0.03282348,192.5,192.43,14.55357873]
[1738907238424,0.03282348,192.5,192.43,19.74867873]
[1738907238625,5.1938,192.49,192.43,19.74867873]
[1738907238923,0.03282348,192.5,192.43,14.55357873]
[1738907239120,0.03282348,192.5,192.4,14.55357873]
[1738907239320,18.35357873,192.53,192.4,14.55357873]
[1738907239520,5.23055504,192.47,192.4,19.74967873]
[1738907240115,5.23055504,192.47,192.41,5.1957]
[1738907240320,0.03605504,192.47,192.4,14.55357873]
[1738907241828,0.03605504,192.47,192.42,5.1955]
[1738907242423,5.23035504,192.47,192.41,5.1959]
[1738907242834,0.03605504,192.47,192.42,5.1955]
[1738907243236,0.03605504,192.47,192.4,14.55357873]
[1738907243535,0.03605504,192.47,192.34,14.55357873]
[1738907243536,5.1963,192.4,192.34,14.55357873]
[1738907243721,30.13357873,192.5,192.33,5.198]
[1738907243722,18.37357873,192.44,192.33,5.198]
[1738907243925,0.03556628,192.39,192.33,5.198]
[1738907244125,0.03556628,192.39,192.34,5.1978]
[1738907244529,0.03556628,192.39,192.31,14.55357873]
[1738907244730,5.23216628,192.39,192.32,5.1983]
[1738907245027,5.23216628,192.39,192.31,14.55357873]
[1738907245833,5.23216628,192.39,192.32,5.1983]
[1738907246126,0.03556628,192.39,192.31,14.55357873]
[1738907247531,5.23196628,192.39,192.31,14.55357873]
[1738907248028,0.03556628,192.39,192.31,14.55357873]
[1738907248227,0.03556628,192.39,192.28,14.55357873]
[1738907248426,14.55357873,192.41,192.28,14.55357873]
[1738907248626,0.03781247,192.35,192.28,14.55357873]
[1738907249026,0.03781247,192.35,192.28,19.75297873]
[1738907249230,0.03781247,192.35,192.28,14.55357873]
[1738907250131,0.03781247,192.35,192.27,1.5393]
[1738907250434,5.23561247,192.35,192.27,6.7389]
[1738907250833,5.23561247,192.35,192.27,1.5393]
[1738907251134,0.03781247,192.35,192.28,14.55357873]
[1738907252333,0.03781247,192.35,192.29,5.1991]
[1738907253025,0.03781247,192.35,192.28,14.55357873]
[1738907253230,0.03781247,192.35,192.31,14.55357873]
[1738907253542,0.03781247,192.35,192.34,19.75137873]
[1738907258334,0.03781247,192.35,192.3,14.55357873]
[1738907258838,0.03781247,192.35,192.27,1.5393]
[1738907258839,0.03781247,192.35,192.27,16.09287873]
[1738907259038,0.03781247,192.35,192.29,5.199]
[1738907260235,0.03781247,192.35,192.3,5.1988]
[1738907262839,0.03781247,192.35,192.27,16.09287873]
[1738907262840,0.03781247,192.35,192.31,5.1983]
[1738907263337,0.03781247,192.35,192.3,14.55357873]
[1738907263841,0.03781247,192.35,192.31,3.206]
[1738907265836,0.03781247,192.35,192.33,5.1978]
[1738907268347,5.1961,192.41,192.34,5.1976]
[1738907268846,131.46122041,192.43,192.34,5.1976]
[1738907269146,5.1963,192.4,192.34,5.1976]
[1738907269348,0.03836657,192.39,192.35,0.03326239]
[1738907270546,5.23476657,192.39,192.35,0.03326239]
[1738907270947,0.03836657,192.39,192.35,0.03326239]
[1738907271148,0.03836657,192.39,192.35,5.23066239]
[1738907271448,0.03836657,192.39,192.35,0.03326239]
[1738907271648,5.1972,192.37,192.35,0.03326239]
[1738907271848,0.03836657,192.39,192.35,0.03326239]
[1738907272947,5.1972,192.36,192.35,0.03326239]
[1738907273852,5.1968,192.38,192.35,0.03326239]
[1738907275952,0.03836657,192.39,192.35,0.03326239]
[1738907277350,0.03836657,192.39,192.35,5.23056239]
[1738907277651,0.03836657,192.39,192.35,0.03326239]
[1738907279255,0.03836657,192.39,192.38,5.1967]
[1738907279551,21.25098316,192.48,192.36,14.55357873]
[1738907279848,21.25098316,192.48,192.39,14.55357873]
[1738907280353,21.25098316,192.48,192.42,14.55357873]
[1738907280558,0.0327131,192.45,192.42,14.59178172]
[1738907280950,0.0327131,192.45,192.44,5.1951]
[1738907281151,0.0327131,192.45,192.42,0.03820299]
[1738907282754,5.1952,192.44,192.42,0.03820299]
[1738907282957,0.0327131,192.45,192.42,0.03820299]
[1738907283558,5.2277131,192.45,192.42,0.03820299]
[1738907284359,0.0327131,192.45,192.42,0.03820299]
[1738907286359,0.0327131,192.45,192.42,5.23380299]
[1738907288768,0.0327131,192.45,192.42,14.59178172]
[1738907289766,5.1933,192.51,192.42,14.59178172]
[1738907290071,4.864,192.56,192.45,14.55357873]
[1738907290460,3.3205,192.56,192.45,14.55357873]
[1738907290663,5.1927,192.53,192.47,5.1943]
[1738907290868,0.03472109,192.52,192.49,0.03963402]
[1738907294373,0.03472109,192.52,192.51,5.1932]
[1738907294574,5.1915,192.58,192.51,5.1932]
[1738907294575,3.1377,192.61,192.51,14.55357873]
[1738907295272,5.191,192.6,192.53,5.1924]
[1738907295477,5.191,192.6,192.51,14.55357873]
[1738907295872,0.03584596,192.57,192.55,5.1921]
[1738907297172,0.03584596,192.57,192.56,5.1918]
[1738907298679,5.1896,192.65,192.58,5.1911]
[1738907298878,5.1896,192.65,192.58,19.74467873]
[1738907299474,5.1892,192.66,192.59,5.1908]
[1738907299673,14.55357873,192.7,192.59,5.1908]
[1738907299878,0.03544367,192.64,192.61,0.03724309]
[1738907300078,14.55357873,192.7,192.61,0.03724309]
[1738907300273,0.03982584,192.64,192.61,0.03724309]
[1738907301184,14.59340457,192.64,192.61,0.03724309]
[1738907301579,5.19,192.63,192.61,0.03724309]
[1738907301784,0.03982584,192.64,192.61,0.03724309]
[1738907302181,5.19,192.63,192.61,0.03724309]
[1738907302384,0.03982584,192.64,192.61,0.03724309]
[1738907303180,5.22952584,192.64,192.61,0.03724309]
[1738907304084,0.03982584,192.64,192.61,0.03724309]
[1738907309285,5.22952584,192.64,192.61,0.03724309]
[1738907314295,0.03982584,192.64,192.61,0.03724309]
[1738907314794,5.1902,192.62,192.61,0.03724309]
[1738907317890,5.1916,192.57,192.54,9.31644073]
[1738907318094,9.31644073,192.58,192.52,9.31644073]
[1738907318397,9.31644073,192.58,192.5,9.31644073]
[1738907318598,5.1922,192.55,192.49,8.4164]
[1738907318799,5.1922,192.55,192.49,6.791]
[1738907319195,0.03854105,192.54,192.5,0.03836854]
[1738907319800,0.03854105,192.54,192.5,5.23176854]
[1738907321295,0.03854105,192.54,192.5,0.03836854]
[1738907321495,0.03854105,192.54,192.51,5.1932]
[1738907323203,0.03854105,192.54,192.5,5.23176854]
[1738907323702,5.23094105,192.54,192.5,0.03836854]
[1738907323903,0.03854105,192.54,192.5,0.03836854]
[1738907324992,5.1927,192.53,192.5,0.03836854]
[1738907325195,0.03854105,192.54,192.5,0.03836854]
[1738907326003,5.23094105,192.54,192.5,5.23186854]
[1738907326898,5.23094105,192.54,192.5,0.03836854]
[1738907328803,5.23094105,192.54,192.5,5.23176854]
[1738907329904,0.03854105,192.54,192.5,14.60753898]
[1738907330302,5.23094105,192.54,192.5,19.80093898]
[1738907330704,0.03854105,192.54,192.5,0.03836854]
[1738907331804,5.1928,192.53,192.5,0.03836854]
[1738907335999,0.03854105,192.54,192.51,5.193]
[1738907336204,0.03854105,192.54,192.5,14.60753898]
[1738907337512,0.03854105,192.54,192.53,5.1926]
[1738907338610,0.03854105,192.54,192.53,14.51123444]
[1738907339907,1.6812,192.62,192.53,14.51123444]
[1738907339908,5.1908,192.6,192.55,5.192]
[1738907340107,1.6278,192.63,192.58,9.31863444]
[1738907340509,5.19,192.63,192.58,14.50993444]
[1738907340707,9.31863444,192.65,192.58,14.50993444]
[1738907341109,0.03853986,192.63,192.6,0.0360808]
[1738907344609,5.22853986,192.63,192.6,0.0360808]
[1738907345516,0.03853986,192.63,192.6,0.0360808]
[1738907345716,14.50913444,192.61,192.6,0.0360808]
[1738907345912,9.31863444,192.61,192.52,9.31863444]
[1738907346212,5.1919,192.56,192.52,9.31863444]
[1738907347112,5.2271741,192.56,192.52,9.35404087]
[1738907348509,0.0352741,192.56,192.52,9.35404087]
[1738907348810,0.0352741,192.56,192.52,14.54694087]
[1738907349013,0.0352741,192.56,192.52,9.35404087]
[1738907349617,0.0352741,192.56,192.54,9.31863444]
[1738907350707,0.0352741,192.56,192.54,14.51093444]
[1738907352218,0.0352741,192.56,192.55,5.1921]
[1738907364329,9.31863444,192.67,192.54,9.31863444]
[1738907364536,9.31863444,192.67,192.59,9.31863444]
[1738907364935,5.1905,192.62,192.59,9.31863444]
[1738907365533,5.2294615,192.62,192.59,9.35318768]
[1738907377637,5.2294615,192.62,192.59,0.03455324]
[1738907382451,5.1908,192.6,192.59,0.03455324]
[1738907383146,5.1917,192.57,192.53,9.31863444]
[1738907384146,5.1917,192.57,192.53,14.51103444]
[1738907384450,5.1917,192.57,192.55,9.31863444]
[1738907384451,5.23095142,192.57,192.55,9.31863444]
[1738907385153,0.03925142,192.57,192.55,14.51073444]
[1738907387452,0.03925142,192.57,192.55,9.31863444]
[1738907399864,5.23095142,192.57,192.55,9.31863444]
[1738907400064,0.03925142,192.57,192.55,9.31863444]
[1738907400567,0.03925142,192.57,192.53,9.353309]
[1738907400765,0.03925142,192.57,192.53,0.03467456]
[1738907401370,0.03925142,192.57,192.53,9.353309]
[1738907402361,0.03925142,192.57,192.55,9.31863444]
[1738907402968,0.03925142,192.57,192.53,9.353309]